[Event "*** Titled Tuesday Blitz"]
[Site "Chess.com"]
[Date "2021.02.02"]
[Round "7"]
[White "Zq1"]
[Black "anon219"]
[Result "0-1"]
[WhiteElo "2516"]
[BlackElo "2882"]
[TimeControl "180+1"]
[EndTime "11:18:24 PST"]
[Termination "anon219 won by resignation"]

1. d4 {[%clk 0:03:00.9]} 1... d6 {[%clk 0:02:53.8]} 2. Nf3 {[%clk 0:02:56.5]}
2... Nf6 {[%clk 0:02:51.9]} 3. c4 {[%clk 0:02:55.5]} 3... c5 {[%clk 0:02:44.9]}
4. Nc3 {[%clk 0:02:54.8]} 4... cxd4 {[%clk 0:02:43]} 5. Nxd4 {[%clk 0:02:54.7]}
5... g6 {[%clk 0:02:42.8]} 6. e4 {[%clk 0:02:49.9]} 6... Bg7 {[%clk 0:02:41.8]}
7. Be2 {[%clk 0:02:50.1]} 7... O-O {[%clk 0:02:39.8]} 8. Be3 {[%clk 0:02:50.1]}
8... Nc6 {[%clk 0:02:37.5]} 9. O-O {[%clk 0:02:48.6]} 9... Bd7 {[%clk
0:02:34.6]} 10. Qd2 {[%clk 0:02:45.3]} 10... Ng4 {[%clk 0:02:31.5]} 11. Bxg4
{[%clk 0:02:44.3]} 11... Bxg4 {[%clk 0:02:31.1]} 12. f3 {[%clk 0:02:44.5]} 12...
Be6 {[%clk 0:02:24]} 13. b3 {[%clk 0:02:43.6]} 13... Qa5 {[%clk 0:02:21.9]} 14.
Rac1 {[%clk 0:02:42.1]} 14... Rac8 {[%clk 0:02:20.1]} 15. Rfd1 {[%clk
0:02:36.2]} 15... Rfe8 {[%clk 0:02:14.2]} 16. Nxe6 {[%clk 0:02:29.4]} 16... fxe6
{[%clk 0:02:13.5]} 17. Nb5 {[%clk 0:02:29.4]} 17... Qxd2 {[%clk 0:02:10.4]} 18.
Rxd2 {[%clk 0:02:28.8]} 18... a6 {[%clk 0:02:08.9]} 19. Na3 {[%clk 0:02:07.7]}
19... Nb4 {[%clk 0:02:07.4]} 20. Rcd1 {[%clk 0:02:00.1]} 20... Kf7 {[%clk
0:02:03.1]} 21. Kf2 {[%clk 0:01:58.9]} 21... Bf6 {[%clk 0:01:57.4]} 22. Ke2
{[%clk 0:01:58.2]} 22... Bc3 {[%clk 0:01:54.9]} 23. g4 {[%clk 0:01:45.1]} 23...
Bxd2 {[%clk 0:01:52.9]} 24. Rxd2 {[%clk 0:01:45.3]} 24... h5 {[%clk 0:01:49.3]}
25. gxh5 {[%clk 0:01:35.8]} 25... gxh5 {[%clk 0:01:48.4]} 26. h4 {[%clk
0:01:33.2]} 26... e5 {[%clk 0:01:46]} 27. Nb1 {[%clk 0:01:31.6]} 27... b5 {[%clk
0:01:44.1]} 28. Na3 {[%clk 0:01:29.2]} 28... Rb8 {[%clk 0:01:42.4]} 29. Rd1
{[%clk 0:01:23.3]} 29... Rg8 {[%clk 0:01:40.5]} 30. Kf2 {[%clk 0:01:20.9]} 30...
Nxa2 {[%clk 0:01:38.6]} 31. cxb5 {[%clk 0:01:16.2]} 31... axb5 {[%clk
0:01:37.6]} 32. Nc2 {[%clk 0:00:53.6]} 32... Rbc8 {[%clk 0:01:34.1]} 33. Rd2
{[%clk 0:00:52.1]} 33... Nc3 {[%clk 0:01:30.7]} 34. Nb4 {[%clk 0:00:50.3]} 34...
Ke6 {[%clk 0:01:28.6]} 35. Bg5 {[%clk 0:00:39.7]} 35... Ra8 {[%clk 0:01:21.9]}
36. Rd3 {[%clk 0:00:33.9]} 36... Rgc8 {[%clk 0:01:17.9]} 37. Bd2 {[%clk
0:00:32.6]} 37... Nd1+ {[%clk 0:01:08.9]} 38. Ke2 {[%clk 0:00:30.2]} 38... Nb2
{[%clk 0:01:07.7]} 39. Re3 {[%clk 0:00:28]} 39... Ra1 {[%clk 0:01:06.9]} 40. Bc3
{[%clk 0:00:23.9]} 40... Rb1 {[%clk 0:01:03]} 0-1

[Event "*** Titled Tuesday Blitz"]
[Site "Chess.com"]
[Date "2021.02.02"]
[Round "7"]
[White "erdni1993"]
[Black "Sofiia_Hryzlova"]
[Result "1-0"]
[WhiteElo "2463"]
[BlackElo "2250"]
[TimeControl "180+1"]
[EndTime "11:18:25 PST"]
[Termination "erdni1993 won on time"]

1. d4 {[%clk 0:03:00.9]} 1... Nf6 {[%clk 0:02:59.1]} 2. Nf3 {[%clk 0:03:00.8]}
2... e6 {[%clk 0:02:58.9]} 3. c4 {[%clk 0:03:00.6]} 3... c5 {[%clk 0:02:58.8]}
4. e3 {[%clk 0:02:59.5]} 4... b6 {[%clk 0:02:52.7]} 5. Be2 {[%clk 0:02:57.4]}
5... Bb7 {[%clk 0:02:52.9]} 6. O-O {[%clk 0:02:57.9]} 6... d6 {[%clk 0:02:52.9]}
7. b3 {[%clk 0:02:56.7]} 7... Nbd7 {[%clk 0:02:52.8]} 8. Bb2 {[%clk 0:02:57.2]}
8... Be7 {[%clk 0:02:53]} 9. Nbd2 {[%clk 0:02:57.2]} 9... O-O {[%clk 0:02:52.9]}
10. Rc1 {[%clk 0:02:53]} 10... Rc8 {[%clk 0:02:52.6]} 11. dxc5 {[%clk
0:02:48.9]} 11... Nxc5 {[%clk 0:02:51.8]} 12. Nd4 {[%clk 0:02:48.3]} 12... Qc7
{[%clk 0:02:47]} 13. Bf3 {[%clk 0:02:48.2]} 13... Nce4 {[%clk 0:02:42.2]} 14.
Nxe4 {[%clk 0:02:46.1]} 14... Bxe4 {[%clk 0:02:40.6]} 15. Bxe4 {[%clk
0:02:40.5]} 15... Nxe4 {[%clk 0:02:40.6]} 16. Qg4 {[%clk 0:02:26.2]} 16... Nf6
{[%clk 0:02:34.5]} 17. Qf3 {[%clk 0:02:18.2]} 17... a6 {[%clk 0:02:19.6]} 18.
Rfd1 {[%clk 0:02:17.1]} 18... Qc5 {[%clk 0:02:17.3]} 19. h3 {[%clk 0:02:12.8]}
19... Rfd8 {[%clk 0:02:15.9]} 20. Qb7 {[%clk 0:02:06.9]} 20... Rc7 {[%clk
0:01:42.3]} 21. Qxa6 {[%clk 0:02:02.9]} 21... Ne4 {[%clk 0:01:34.4]} 22. Qb5
{[%clk 0:01:58.6]} 22... Ra8 {[%clk 0:01:24]} 23. a4 {[%clk 0:01:56.1]} 23...
Bf6 {[%clk 0:01:16.3]} 24. Rc2 {[%clk 0:01:51.1]} 24... Rd8 {[%clk 0:01:09.7]}
25. Rdc1 {[%clk 0:01:45]} 25... Kf8 {[%clk 0:00:50.7]} 26. b4 {[%clk 0:01:43.8]}
26... Qg5 {[%clk 0:00:41.5]} 27. Qxg5 {[%clk 0:01:38.2]} 27... Bxg5 {[%clk
0:00:36.2]} 28. Nb5 {[%clk 0:01:35]} 28... Rc6 {[%clk 0:00:29.1]} 29. Bd4 {[%clk
0:01:22.9]} 29... e5 {[%clk 0:00:21.4]} 30. Na7 {[%clk 0:01:17.9]} 30... Rxc4
{[%clk 0:00:05.8]} 31. Rxc4 {[%clk 0:01:16.3]} 31... exd4 {[%clk 0:00:05.9]} 32.
Rxd4 {[%clk 0:01:14.5]} 32... f5 {[%clk 0:00:04.9]} 33. Rc8 {[%clk 0:01:13.4]}
33... Rxc8 {[%clk 0:00:04.1]} 34. Nxc8 {[%clk 0:01:14.3]} 34... Bf6 {[%clk
0:00:03.9]} 35. Rd5 {[%clk 0:01:12.6]} 35... Bc3 {[%clk 0:00:03.2]} 36. Nxd6
{[%clk 0:01:11.3]} 36... Bxb4 {[%clk 0:00:01.6]} 37. Rxf5+ {[%clk 0:01:09.9]}
1-0

[Event "*** Titled Tuesday Blitz"]
[Site "Chess.com"]
[Date "2021.02.02"]
[Round "7"]
[White "esapunov"]
[Black "dretch"]
[Result "0-1"]
[WhiteElo "2627"]
[BlackElo "2848"]
[TimeControl "180+1"]
[EndTime "11:18:30 PST"]
[Termination "dretch won by checkmate"]

1. c4 {[%clk 0:03:00.9]} 1... c6 {[%clk 0:02:57.5]} 2. Nf3 {[%clk 0:03:00.4]}
2... d5 {[%clk 0:02:57.7]} 3. b3 {[%clk 0:03:01]} 3... Bg4 {[%clk 0:02:56.4]} 4.
e3 {[%clk 0:03:00.2]} 4... Nd7 {[%clk 0:02:52.2]} 5. Bb2 {[%clk 0:02:59.9]} 5...
e6 {[%clk 0:02:50.3]} 6. h3 {[%clk 0:02:59.9]} 6... Bh5 {[%clk 0:02:47.7]} 7.
Nc3 {[%clk 0:02:59.2]} 7... Ngf6 {[%clk 0:02:37.8]} 8. g4 {[%clk 0:02:58.3]}
8... Bg6 {[%clk 0:02:37.3]} 9. Nh4 {[%clk 0:02:58.5]} 9... Be4 {[%clk
0:02:20.6]} 10. Nxe4 {[%clk 0:02:27]} 10... Nxe4 {[%clk 0:02:10.6]} 11. Nf3
{[%clk 0:02:26]} 11... h5 {[%clk 0:01:55.2]} 12. Bg2 {[%clk 0:01:57.5]} 12...
dxc4 {[%clk 0:01:03.6]} 13. bxc4 {[%clk 0:01:51]} 13... Ndc5 {[%clk 0:01:02.3]}
14. d4 {[%clk 0:01:47.8]} 14... Qa5+ {[%clk 0:00:59.6]} 15. Kf1 {[%clk
0:01:44.6]} 15... Qb4 {[%clk 0:00:54.2]} 16. Qc2 {[%clk 0:01:40.7]} 16... Nd3
{[%clk 0:00:50.2]} 17. Rb1 {[%clk 0:01:21.2]} 17... Ndxf2 {[%clk 0:00:46.1]} 18.
Ba1 {[%clk 0:01:03.4]} 18... Qa3 {[%clk 0:00:35.2]} 19. Rb3 {[%clk 0:00:52.5]}
19... Qa4 {[%clk 0:00:23.5]} 20. Rh2 {[%clk 0:00:25.3]} 20... hxg4 {[%clk
0:00:19.8]} 21. hxg4 {[%clk 0:00:25.4]} 21... Nxg4 {[%clk 0:00:11.4]} 22. Rxh8
{[%clk 0:00:19.7]} 22... Nxe3+ {[%clk 0:00:11.5]} 23. Rxe3 {[%clk 0:00:19]}
23... Qxc2 {[%clk 0:00:11.3]} 24. Ne5 {[%clk 0:00:17.4]} 24... Qf2# {[%clk
0:00:10.6]} 0-1

[Event "*** Titled Tuesday Blitz"]
[Site "Chess.com"]
[Date "2021.02.02"]
[Round "7"]
[White "Lagmantr"]
[Black "Artem_Sadovsky"]
[Result "1-0"]
[WhiteElo "2764"]
[BlackElo "2564"]
[TimeControl "180+1"]
[EndTime "11:18:31 PST"]
[Termination "Lagmantr won on time"]

1. Nc3 {[%clk 0:03:00.9]} 1... d5 {[%clk 0:02:53]} 2. e4 {[%clk 0:02:57.5]} 2...
d4 {[%clk 0:02:43.4]} 3. Nce2 {[%clk 0:02:56.8]} 3... c5 {[%clk 0:02:41]} 4. f4
{[%clk 0:02:56.6]} 4... Nc6 {[%clk 0:02:40.7]} 5. Nf3 {[%clk 0:02:55.8]} 5... e5
{[%clk 0:02:30.1]} 6. g3 {[%clk 0:02:54.7]} 6... Bg4 {[%clk 0:02:24.2]} 7. Bg2
{[%clk 0:02:54.6]} 7... Bd6 {[%clk 0:02:23.8]} 8. d3 {[%clk 0:02:54.4]} 8...
Nge7 {[%clk 0:02:22.4]} 9. O-O {[%clk 0:02:54]} 9... h5 {[%clk 0:02:19.2]} 10.
f5 {[%clk 0:02:52.8]} 10... Bxf3 {[%clk 0:01:51.3]} 11. Bxf3 {[%clk 0:02:51.9]}
11... h4 {[%clk 0:01:46.6]} 12. g4 {[%clk 0:02:51.5]} 12... f6 {[%clk 0:01:43]}
13. g5 {[%clk 0:02:46.8]} 13... b5 {[%clk 0:01:36.3]} 14. c3 {[%clk 0:02:44.1]}
14... Kd7 {[%clk 0:01:31.8]} 15. a4 {[%clk 0:02:37.8]} 15... a6 {[%clk
0:01:29.6]} 16. Qb3 {[%clk 0:02:37.5]} 16... Qb6 {[%clk 0:01:17.8]} 17. axb5
{[%clk 0:02:25.9]} 17... axb5 {[%clk 0:01:14]} 18. Rxa8 {[%clk 0:02:25.2]} 18...
Rxa8 {[%clk 0:01:14.9]} 19. gxf6 {[%clk 0:02:25.6]} 19... c4 {[%clk 0:01:07.1]}
20. dxc4 {[%clk 0:02:22.5]} 20... d3+ {[%clk 0:01:08]} 21. Kh1 {[%clk
0:02:22.5]} 21... dxe2 {[%clk 0:01:06.6]} 22. Bxe2 {[%clk 0:02:22.3]} 22... Na5
{[%clk 0:01:02.9]} 23. Qa2 {[%clk 0:02:02.5]} 23... gxf6 {[%clk 0:00:47.4]} 24.
b4 {[%clk 0:02:01.1]} 24... Qc6 {[%clk 0:00:42.5]} 25. bxa5 {[%clk 0:01:55.2]}
25... Qxe4+ {[%clk 0:00:41.1]} 26. Bf3 {[%clk 0:01:55.4]} 26... Qd3 {[%clk
0:00:41.1]} 27. Qg2 {[%clk 0:01:31.4]} 27... Rg8 {[%clk 0:00:39.4]} 28. Qe2
{[%clk 0:01:26.9]} 28... Qxc4 {[%clk 0:00:28.1]} 29. Qxc4 {[%clk 0:01:21.5]}
29... bxc4 {[%clk 0:00:29]} 30. a6 {[%clk 0:01:21.9]} 30... Nc6 {[%clk
0:00:29.6]} 31. Bd5 {[%clk 0:01:18.4]} 31... Ra8 {[%clk 0:00:29.4]} 32. Bxc4
{[%clk 0:01:18.2]} 32... Kc7 {[%clk 0:00:24.7]} 33. Be3 {[%clk 0:01:17.8]} 33...
e4 {[%clk 0:00:19.5]} 34. Rb1 {[%clk 0:01:16.3]} 34... Ne5 {[%clk 0:00:18.2]}
35. Rb7+ {[%clk 0:01:13.7]} 35... Kc6 {[%clk 0:00:18.2]} 36. Rb6+ {[%clk
0:01:06]} 36... Kc7 {[%clk 0:00:17.8]} 37. Bd5 {[%clk 0:01:05.8]} 37... Ra7
{[%clk 0:00:03.4]} 38. Bxe4 {[%clk 0:01:05.4]} 1-0

[Event "*** Titled Tuesday Blitz"]
[Site "Chess.com"]
[Date "2021.02.02"]
[Round "7"]
[White "PawnEatingZombie"]
[Black "saraswathii"]
[Result "1-0"]
[WhiteElo "2248"]
[BlackElo "2382"]
[TimeControl "180+1"]
[EndTime "11:18:31 PST"]
[Termination "PawnEatingZombie won by resignation"]

1. d4 {[%clk 0:03:00.9]} 1... g6 {[%clk 0:02:48.8]} 2. e4 {[%clk 0:03:00.4]}
2... Bg7 {[%clk 0:02:48.5]} 3. Nc3 {[%clk 0:03:00]} 3... d6 {[%clk 0:02:47.7]}
4. g3 {[%clk 0:02:59.8]} 4... Nf6 {[%clk 0:02:47.1]} 5. Bg2 {[%clk 0:02:58.9]}
5... O-O {[%clk 0:02:46.4]} 6. Nge2 {[%clk 0:02:58.8]} 6... Nbd7 {[%clk
0:02:42.6]} 7. O-O {[%clk 0:02:57.7]} 7... c5 {[%clk 0:02:39.8]} 8. h3 {[%clk
0:02:54.5]} 8... cxd4 {[%clk 0:02:36.5]} 9. Nxd4 {[%clk 0:02:53.8]} 9... Nc5
{[%clk 0:02:34.7]} 10. Be3 {[%clk 0:02:31.2]} 10... a6 {[%clk 0:02:25.4]} 11. a4
{[%clk 0:02:30.2]} 11... Qc7 {[%clk 0:02:18.2]} 12. Qd2 {[%clk 0:02:22.5]} 12...
Ne6 {[%clk 0:02:16.7]} 13. Nb3 {[%clk 0:01:58.3]} 13... Nc5 {[%clk 0:02:01.5]}
14. Nxc5 {[%clk 0:01:52.8]} 14... dxc5 {[%clk 0:02:02.4]} 15. Nd5 {[%clk
0:01:34.2]} 15... Nxd5 {[%clk 0:01:53.2]} 16. exd5 {[%clk 0:01:35.1]} 16... Bxb2
{[%clk 0:01:45.1]} 17. Rab1 {[%clk 0:01:35.1]} 17... Be5 {[%clk 0:01:32.7]} 18.
Bh6 {[%clk 0:01:14.4]} 18... Rd8 {[%clk 0:01:24.5]} 19. c4 {[%clk 0:01:13.2]}
19... e6 {[%clk 0:01:12.7]} 20. Kh2 {[%clk 0:01:10.3]} 20... exd5 {[%clk
0:01:07.9]} 21. cxd5 {[%clk 0:01:11.2]} 21... Bf5 {[%clk 0:01:04.3]} 22. d6
{[%clk 0:00:36]} 22... Bxb1 {[%clk 0:00:48.5]} 23. dxc7 {[%clk 0:00:33.7]} 23...
Rxd2 {[%clk 0:00:45.7]} 24. Bxb7 {[%clk 0:00:21.4]} 24... Re8 {[%clk 0:00:33.4]}
25. Bxd2 {[%clk 0:00:19.4]} 25... Bd3 {[%clk 0:00:27.7]} 26. Re1 {[%clk
0:00:16.6]} 1-0

[Event "*** Titled Tuesday Blitz"]
[Site "Chess.com"]
[Date "2021.02.02"]
[Round "7"]
[White "Sergienko_Sergey"]
[Black "annacramling"]
[Result "1-0"]
[WhiteElo "2390"]
[BlackElo "2109"]
[TimeControl "180+1"]
[EndTime "11:18:32 PST"]
[Termination "Sergienko_Sergey won by checkmate"]

1. e4 {[%clk 0:02:57.7]} 1... c5 {[%clk 0:02:59.9]} 2. Nf3 {[%clk 0:02:57.2]}
2... Nc6 {[%clk 0:03:00.2]} 3. Bb5 {[%clk 0:02:55.7]} 3... e5 {[%clk 0:02:54.6]}
4. O-O {[%clk 0:02:53.5]} 4... d6 {[%clk 0:02:53.4]} 5. c3 {[%clk 0:02:52.9]}
5... Bg4 {[%clk 0:02:52.4]} 6. h3 {[%clk 0:02:50.9]} 6... Bh5 {[%clk 0:02:52.2]}
7. d3 {[%clk 0:02:46.6]} 7... Nf6 {[%clk 0:02:49.9]} 8. Nbd2 {[%clk 0:02:45.3]}
8... Be7 {[%clk 0:02:49.6]} 9. Re1 {[%clk 0:02:41.4]} 9... O-O {[%clk
0:02:48.7]} 10. Nf1 {[%clk 0:02:41.1]} 10... Qb6 {[%clk 0:02:34.6]} 11. Ba4
{[%clk 0:02:37.4]} 11... Rad8 {[%clk 0:02:20.4]} 12. Ng3 {[%clk 0:02:34.3]}
12... Bg6 {[%clk 0:02:20]} 13. Nh4 {[%clk 0:02:14.3]} 13... d5 {[%clk
0:01:49.4]} 14. Nxg6 {[%clk 0:02:07.6]} 14... hxg6 {[%clk 0:01:45.5]} 15. Qe2
{[%clk 0:02:02.1]} 15... d4 {[%clk 0:01:34.5]} 16. Bc2 {[%clk 0:01:53]} 16...
dxc3 {[%clk 0:01:32.9]} 17. bxc3 {[%clk 0:01:50.6]} 17... Qc7 {[%clk 0:01:13.5]}
18. Rb1 {[%clk 0:01:45.8]} 18... Rc8 {[%clk 0:01:09.6]} 19. h4 {[%clk
0:01:36.9]} 19... c4 {[%clk 0:01:06]} 20. dxc4 {[%clk 0:01:25.3]} 20... Na5
{[%clk 0:01:06.1]} 21. h5 {[%clk 0:01:05.9]} 21... gxh5 {[%clk 0:01:01.3]} 22.
Nxh5 {[%clk 0:01:05.8]} 22... Nxh5 {[%clk 0:00:56.9]} 23. Qxh5 {[%clk
0:01:05.6]} 23... Nxc4 {[%clk 0:00:56.9]} 24. g3 {[%clk 0:00:49.5]} 24... Bc5
{[%clk 0:00:31.7]} 25. Kg2 {[%clk 0:00:45.7]} 25... g6 {[%clk 0:00:26.5]} 26.
Qh6 {[%clk 0:00:42.4]} 26... Bxf2 {[%clk 0:00:03.8]} 27. Rh1 {[%clk 0:00:37.1]}
27... Rfd8 {[%clk 0:00:02]} 28. Qh8# {[%clk 0:00:35.8]} 1-0

[Event "*** Titled Tuesday Blitz"]
[Site "Chess.com"]
[Date "2021.02.02"]
[Round "7"]
[White "Zmof"]
[Black "Treasurechess777"]
[Result "1-0"]
[WhiteElo "2134"]
[BlackElo "2386"]
[TimeControl "180+1"]
[EndTime "11:18:36 PST"]
[Termination "Zmof won by resignation"]

1. e4 {[%clk 0:03:00.9]} 1... Nf6 {[%clk 0:03:00.9]} 2. e5 {[%clk 0:03:00.4]}
2... Nd5 {[%clk 0:03:01.4]} 3. d4 {[%clk 0:03:00.9]} 3... Nb6 {[%clk 0:03:01.8]}
4. Nf3 {[%clk 0:03:00.1]} 4... d5 {[%clk 0:03:01.7]} 5. exd6 {[%clk 0:02:58.2]}
5... cxd6 {[%clk 0:03:01.3]} 6. Bd3 {[%clk 0:02:55.7]} 6... Bg4 {[%clk
0:02:59.6]} 7. h3 {[%clk 0:02:54.9]} 7... Bxf3 {[%clk 0:02:59.5]} 8. Qxf3 {[%clk
0:02:54.2]} 8... Nc6 {[%clk 0:03:00.4]} 9. c3 {[%clk 0:02:53.6]} 9... e6 {[%clk
0:02:58.2]} 10. O-O {[%clk 0:02:52.6]} 10... Be7 {[%clk 0:02:58.5]} 11. Nd2
{[%clk 0:02:49.7]} 11... d5 {[%clk 0:02:58.4]} 12. Qe2 {[%clk 0:02:44.1]} 12...
O-O {[%clk 0:02:58.2]} 13. Nf3 {[%clk 0:02:44.2]} 13... Re8 {[%clk 0:02:51.6]}
14. Bf4 {[%clk 0:02:43]} 14... Bd6 {[%clk 0:02:48.6]} 15. Bxd6 {[%clk
0:02:40.5]} 15... Qxd6 {[%clk 0:02:48.7]} 16. Rfe1 {[%clk 0:02:39.5]} 16... f6
{[%clk 0:02:48.2]} 17. Rad1 {[%clk 0:02:32.3]} 17... e5 {[%clk 0:02:46.5]} 18.
dxe5 {[%clk 0:02:26.9]} 18... fxe5 {[%clk 0:02:45.8]} 19. Ng5 {[%clk 0:02:21.6]}
19... g6 {[%clk 0:02:41.7]} 20. Ne4 {[%clk 0:02:07.2]} 20... Qe7 {[%clk
0:02:32.4]} 21. Ng3 {[%clk 0:01:56.6]} 21... Qf6 {[%clk 0:02:11.3]} 22. Bc2
{[%clk 0:01:54.2]} 22... Rad8 {[%clk 0:01:46.3]} 23. Bb3 {[%clk 0:01:53.5]}
23... Kh8 {[%clk 0:01:37.9]} 24. Qb5 {[%clk 0:01:52.4]} 24... Rf8 {[%clk
0:01:23.5]} 25. Re2 {[%clk 0:01:43.1]} 25... Ne7 {[%clk 0:01:02.9]} 26. a4
{[%clk 0:01:38.2]} 26... a6 {[%clk 0:01:00.2]} 27. Qd3 {[%clk 0:01:31.8]} 27...
Nc6 {[%clk 0:00:40.8]} 28. Qe3 {[%clk 0:01:21.9]} 28... d4 {[%clk 0:00:37]} 29.
Qh6 {[%clk 0:01:10.2]} 29... d3 {[%clk 0:00:31.7]} 30. Red2 {[%clk 0:01:02.7]}
30... Na5 {[%clk 0:00:22.9]} 31. Ne4 {[%clk 0:00:57.7]} 31... Qf5 {[%clk
0:00:12.1]} 32. Ng5 {[%clk 0:00:54.5]} 32... Rd7 {[%clk 0:00:12.3]} 33. Be6
{[%clk 0:00:52.3]} 33... Rg7 {[%clk 0:00:02.7]} 34. Bxf5 {[%clk 0:00:50.8]}
34... Rxf5 {[%clk 0:00:03.6]} 35. Rxd3 {[%clk 0:00:48.9]} 1-0

[Event "*** Titled Tuesday Blitz"]
[Site "Chess.com"]
[Date "2021.02.02"]
[Round "7"]
[White "Supernotar"]
[Black "LucaBrasi1968"]
[Result "1-0"]
[WhiteElo "2776"]
[BlackElo "2504"]
[TimeControl "180+1"]
[EndTime "11:18:41 PST"]
[Termination "Supernotar won by resignation"]

1. d4 {[%clk 0:03:00.9]} 1... f5 {[%clk 0:02:56.8]} 2. c4 {[%clk 0:03:00.9]}
2... Nf6 {[%clk 0:02:56.2]} 3. Nf3 {[%clk 0:03:01.5]} 3... e6 {[%clk 0:02:56.5]}
4. g3 {[%clk 0:03:01.4]} 4... d5 {[%clk 0:02:56.4]} 5. Bg2 {[%clk 0:03:01.7]}
5... Bd6 {[%clk 0:02:56.6]} 6. O-O {[%clk 0:03:02]} 6... c6 {[%clk 0:02:56.9]}
7. b3 {[%clk 0:03:02.5]} 7... Qe7 {[%clk 0:02:56.7]} 8. a4 {[%clk 0:03:02.2]}
8... a5 {[%clk 0:02:56.1]} 9. Ba3 {[%clk 0:03:02.5]} 9... Na6 {[%clk 0:02:56]}
10. Bxd6 {[%clk 0:03:02.4]} 10... Qxd6 {[%clk 0:02:55.7]} 11. Nbd2 {[%clk
0:03:03.1]} 11... O-O {[%clk 0:02:54.7]} 12. Qc1 {[%clk 0:03:03.4]} 12... b6
{[%clk 0:02:54.5]} 13. Qb2 {[%clk 0:03:03.4]} 13... Bb7 {[%clk 0:02:54]} 14.
Rac1 {[%clk 0:03:03.2]} 14... Rac8 {[%clk 0:02:52.6]} 15. e3 {[%clk 0:03:03.2]}
15... c5 {[%clk 0:02:52.9]} 16. Rfd1 {[%clk 0:03:02]} 16... Rfd8 {[%clk
0:02:52.2]} 17. Ne5 {[%clk 0:03:01]} 17... Nb4 {[%clk 0:02:51.7]} 18. Qb1 {[%clk
0:02:56.5]} 18... Qe7 {[%clk 0:02:50.8]} 19. cxd5 {[%clk 0:02:39.7]} 19... Bxd5
{[%clk 0:02:48.7]} 20. Bxd5 {[%clk 0:02:11.4]} 20... Nbxd5 {[%clk 0:02:39.6]}
21. Ndc4 {[%clk 0:02:08.5]} 21... Qb7 {[%clk 0:02:37.1]} 22. dxc5 {[%clk
0:02:00.5]} 22... Rxc5 {[%clk 0:02:36.3]} 23. Rd4 {[%clk 0:01:50]} 23... Rcc8
{[%clk 0:02:26.7]} 24. Qd3 {[%clk 0:01:44]} 24... Qc7 {[%clk 0:02:15.8]} 25. Rd1
{[%clk 0:01:41.1]} 25... Ne4 {[%clk 0:02:06.3]} 26. Rc1 {[%clk 0:01:22.7]} 26...
Nc5 {[%clk 0:01:57.7]} 27. Qd1 {[%clk 0:01:17.5]} 27... Qb7 {[%clk 0:01:44.9]}
28. Nd3 {[%clk 0:01:14.4]} 28... Ne4 {[%clk 0:01:37.1]} 29. Nf4 {[%clk
0:01:10.4]} 29... Nc5 {[%clk 0:01:01.7]} 30. h4 {[%clk 0:01:05.7]} 30... Qb8
{[%clk 0:00:32.9]} 31. Nxe6 {[%clk 0:01:00.8]} 31... Nxe6 {[%clk 0:00:30.3]} 32.
Rxd5 {[%clk 0:01:01.2]} 32... Nc5 {[%clk 0:00:30.9]} 33. Nd6 {[%clk 0:00:55]}
33... Rc6 {[%clk 0:00:27.7]} 34. Nxf5 {[%clk 0:00:45.9]} 34... Re8 {[%clk
0:00:23.9]} 35. Rd6 {[%clk 0:00:35.3]} 35... Rxd6 {[%clk 0:00:20.9]} 36. Nxd6
{[%clk 0:00:36.2]} 1-0

[Event "*** Titled Tuesday Blitz"]
[Site "Chess.com"]
[Date "2021.02.02"]
[Round "7"]
[White "publicaccountcze"]
[Black "mirochka"]
[Result "0-1"]
[WhiteElo "2340"]
[BlackElo "2220"]
[TimeControl "180+1"]
[EndTime "11:18:43 PST"]
[Termination "mirochka won by resignation"]

1. d4 {[%clk 0:03:00.9]} 1... Nf6 {[%clk 0:02:58.8]} 2. c4 {[%clk 0:02:59.4]}
2... e6 {[%clk 0:02:58.2]} 3. Nc3 {[%clk 0:02:59.8]} 3... d5 {[%clk 0:02:56.5]}
4. cxd5 {[%clk 0:02:58.7]} 4... exd5 {[%clk 0:02:57.4]} 5. Bg5 {[%clk
0:02:58.3]} 5... Be7 {[%clk 0:02:56]} 6. e3 {[%clk 0:02:58.7]} 6... c6 {[%clk
0:02:56.1]} 7. Bd3 {[%clk 0:02:57.8]} 7... Bg4 {[%clk 0:02:50.3]} 8. f3 {[%clk
0:02:54.7]} 8... Bh5 {[%clk 0:02:50.2]} 9. Nge2 {[%clk 0:02:53]} 9... Bg6 {[%clk
0:02:49.5]} 10. O-O {[%clk 0:02:38.7]} 10... Nbd7 {[%clk 0:02:48.6]} 11. Bh4
{[%clk 0:02:35.9]} 11... O-O {[%clk 0:02:37.3]} 12. Bf2 {[%clk 0:02:36]} 12...
c5 {[%clk 0:02:23.3]} 13. e4 {[%clk 0:02:16.5]} 13... cxd4 {[%clk 0:02:20.7]}
14. Bxd4 {[%clk 0:02:11.9]} 14... Nc5 {[%clk 0:02:18.2]} 15. Bxc5 {[%clk
0:01:50.1]} 15... Bxc5+ {[%clk 0:02:19.1]} 16. Kh1 {[%clk 0:01:48.7]} 16... dxe4
{[%clk 0:02:08]} 17. Nxe4 {[%clk 0:01:45.9]} 17... Nxe4 {[%clk 0:02:07.2]} 18.
Bxe4 {[%clk 0:01:43.9]} 18... Bxe4 {[%clk 0:02:02.9]} 19. fxe4 {[%clk
0:01:42.4]} 19... Qxd1 {[%clk 0:02:01.8]} 20. Raxd1 {[%clk 0:01:39.3]} 20...
Rad8 {[%clk 0:02:02]} 21. Nc3 {[%clk 0:01:37.7]} 21... Bd4 {[%clk 0:01:58]} 22.
g3 {[%clk 0:01:30.5]} 22... f6 {[%clk 0:01:57.2]} 23. Kg2 {[%clk 0:01:29.6]}
23... Rfe8 {[%clk 0:01:55.8]} 24. Kf3 {[%clk 0:01:29]} 24... Kf7 {[%clk
0:01:54.5]} 25. Rfe1 {[%clk 0:01:20.2]} 25... Bxc3 {[%clk 0:01:51.4]} 26. bxc3
{[%clk 0:01:18.2]} 26... Rxd1 {[%clk 0:01:48.6]} 27. Rxd1 {[%clk 0:01:14.7]}
27... Ke6 {[%clk 0:01:49.2]} 28. h4 {[%clk 0:01:07.6]} 28... Rc8 {[%clk
0:01:48.7]} 29. Rd3 {[%clk 0:01:06.2]} 29... Rc5 {[%clk 0:01:48.5]} 30. Kf4
{[%clk 0:01:00.9]} 30... Ra5 {[%clk 0:01:47.9]} 31. Rd2 {[%clk 0:00:55.7]} 31...
Ra4 {[%clk 0:01:47.7]} 32. g4 {[%clk 0:00:49.6]} 32... b6 {[%clk 0:01:45.8]} 33.
g5 {[%clk 0:00:41.2]} 33... f5 {[%clk 0:01:41.3]} 34. Rd4 {[%clk 0:00:36.1]}
34... Rxd4 {[%clk 0:01:37.1]} 35. cxd4 {[%clk 0:00:34.3]} 35... fxe4 {[%clk
0:01:37.3]} 36. Kxe4 {[%clk 0:00:33.3]} 36... g6 {[%clk 0:01:33.3]} 37. a4
{[%clk 0:00:25]} 37... a6 {[%clk 0:01:32.5]} 38. d5+ {[%clk 0:00:21.6]} 38...
Kd6 {[%clk 0:01:31.3]} 39. Kd4 {[%clk 0:00:20.8]} 39... b5 {[%clk 0:01:31.7]}
40. a5 {[%clk 0:00:14.5]} 40... b4 {[%clk 0:01:31.3]} 41. Kc4 {[%clk 0:00:13.5]}
41... b3 {[%clk 0:01:31.1]} 42. Kc3 {[%clk 0:00:08.4]} 42... Kxd5 {[%clk
0:01:31.5]} 43. Kxb3 {[%clk 0:00:07.4]} 43... Kc5 {[%clk 0:01:30.4]} 44. Kc3
{[%clk 0:00:04]} 44... Kb5 {[%clk 0:01:30.2]} 45. Kb3 {[%clk 0:00:03.9]} 45...
Kxa5 {[%clk 0:01:30.3]} 46. Ka3 {[%clk 0:00:04]} 46... Kb5 {[%clk 0:01:30.4]}
47. Kb3 {[%clk 0:00:04.7]} 47... Kc5 {[%clk 0:01:27.5]} 48. Ka4 {[%clk
0:00:04.3]} 48... Kd5 {[%clk 0:01:27.6]} 49. Ka5 {[%clk 0:00:05.2]} 49... Ke5
{[%clk 0:01:27.7]} 50. Kxa6 {[%clk 0:00:06.1]} 50... Kf5 {[%clk 0:01:28]} 51.
Kb5 {[%clk 0:00:07]} 51... Kg4 {[%clk 0:01:28.1]} 52. Kc4 {[%clk 0:00:07.7]}
52... Kxh4 {[%clk 0:01:28.4]} 53. Kd4 {[%clk 0:00:08.6]} 53... Kxg5 {[%clk
0:01:28.7]} 54. Ke4 {[%clk 0:00:09.5]} 54... h5 {[%clk 0:01:28.9]} 55. Kf3
{[%clk 0:00:10.4]} 55... Kf5 {[%clk 0:01:28.9]} 0-1